fUST/lending_fUST_20260620
["ID","MTS","AMOUNT","RATE_DAILY","PERIOD"]
[425825085,1781943047000,-3191.22220405,0.00014482,2]
[425825081,1781943047000,-3191.22220405,0.00014482,2]
[425825083,1781943047000,-3191.22220405,0.00014482,2]
[425825077,1781943047000,-3191.22220405,0.00014482,2]
[425825063,1781943047000,-3191.22220405,0.00014482,2]
[425825074,1781943047000,-3191.22220405,0.00014482,2]
[425825070,1781943047000,-3191.22220405,0.00014482,2]
[425825068,1781943047000,-3191.22220405,0.00014482,2]
[425825065,1781943047000,-3191.22220405,0.00014482,2]
[425825061,1781943047000,-3191.22220405,0.00014482,2]
[425825087,1781943047000,-3191.22220405,0.00014482,2]
[425825072,1781943047000,-3191.22220405,0.00014482,2]
[425825088,1781943047000,-3191.22220405,0.00014482,2]
[425825066,1781943047000,-3191.22220405,0.00014482,2]
[425825090,1781943047000,-3191.22220405,0.00014482,2]
[425825092,1781943047000,-3191.22220405,0.00014482,2]
[425825118,1781943047000,-2237.34934898,0.00014482,2]
[425825114,1781943047000,-3610.10740162,0.00014482,2]
[425825110,1781943047000,-3287.34272099,0.00014482,2]
[425825105,1781943047000,-3610.10740162,0.00014482,2]
[425825101,1781943047000,-3610.10740162,0.00014482,2]
[425825116,1781943047000,-3610.10740162,0.00014482,2]
[425825112,1781943047000,-322.76468063,0.00014482,2]
[425825097,1781943047000,-3191.22220405,0.00014482,2]
[425825103,1781943047000,-3610.10740162,0.00014482,2]
[425825108,1781943047000,-3610.10740162,0.00014482,2]
[425825099,1781943047000,-3610.10740162,0.00014482,2]
[425825094,1781943047000,-3191.22220405,0.00014482,2]
[425825095,1781943047000,-3191.22220405,0.00014482,2]
[425825107,1781943047000,-3610.10740162,0.00014482,2]
[425825280,1781944232000,-3137.50982157,0.00013,2]
[425825275,1781944232000,-8451.19525927,0.00013,2]
[425825450,1781944238000,-547.66306518,0.00013,2]
[425825746,1781944273000,-1209.78593567,0.00013,2]
[425825760,1781944419000,3056.84047676,0.0001,2]
[425825835,1781945438000,-775.68944509,0.00011297,2]
[425825858,1781945439000,-25797.68599035,0.00011297,2]
[425825856,1781945439000,-34956.6466442,0.00011297,2]
[425825854,1781945439000,-55833.50786062,0.00011297,2]
[425826501,1781945446000,-1000.0,0.00011297,2]
[425826518,1781945447000,-1233.9147055,0.00011297,2]
[425826539,1781945447000,-300.0,0.00011627,2]
[425826535,1781945447000,-402.55535434,0.00011297,2]
[425826537,1781945447000,-174.41,0.00011591,2]
[425826541,1781945447000,-10358.01557857,0.00011628,2]
[425827152,1781945856000,50088.72266512,7.6e-05,2]
[425827157,1781946053000,-311.08178398,0.00010407,2]
[425827158,1781946054000,200.0,0.00024658,120]
[425827159,1781946070000,-463.43612956,0.00010512,2]
[425827160,1781946087000,-430.66878458,0.00010618,2]
[425827162,1781946104000,-156.21,0.00010959,2]
[425827164,1781946120000,-1258.96892735,0.000115,2]
[425827166,1781946137000,-161.30955097,0.00011618,2]
[425827168,1781946154000,-1004.0,0.00011628,2]
[425827196,1781946631000,-300.0,0.00011999,2]
[425827199,1781946631000,-513.00241066,0.00012115,2]
[425827197,1781946631000,-6150.3359319,0.00012,2]
[425827195,1781946631000,-1899.355017,0.00011204,2]
[425827200,1781946631000,-2165.68031734,0.00012115,2]
[425827194,1781946631000,-1014.43439819,0.00011113,2]
[425827189,1781946631000,-281.09472513,0.00010646,2]
[425827191,1781946631000,-162.0756021,0.00010646,2]
[425827190,1781946631000,-337.64835368,0.00010646,2]
[425827193,1781946631000,-555.00135851,0.00011113,2]
[425827188,1781946631000,-156.16373618,0.00010646,2]
[425827192,1781946631000,-780.03786223,0.00010646,2]
[425827198,1781946631000,-918.23910085,0.00012115,2]
[425827212,1781946631000,-500.0,0.00012215,2]
[425827204,1781946631000,-1516.14046407,0.00012215,2]
[425827203,1781946631000,-500.0,0.00012215,2]
[425827213,1781946631000,-1516.14046407,0.00012215,2]
[425827210,1781946631000,-1516.14046407,0.00012215,2]
[425827209,1781946631000,-186.88859951,0.00012215,2]
[425827214,1781946631000,-500.0,0.00012215,2]
[425827207,1781946631000,-500.0,0.00012215,2]
[425827215,1781946631000,-1414.00987905,0.00012215,2]
[425827208,1781946631000,-500.0,0.00012215,2]
[425827202,1781946631000,-500.0,0.00012215,2]
[425827201,1781946631000,-402.00812227,0.00012116,2]
[425827205,1781946631000,-500.0,0.00012215,2]
[425827206,1781946631000,-1516.14046407,0.00012215,2]
[425827211,1781946631000,-500.0,0.00012215,2]
[425827238,1781946638000,-8615.5487493,0.00012752,2]
[425827243,1781946638000,-1209.78593567,0.00013,2]
[425827241,1781946638000,-3263.23484411,0.00013,2]
[425827248,1781946638000,-500.0,0.0001315,2]
[425827246,1781946638000,-500.0,0.0001304,2]
[425827245,1781946638000,-1678.62761329,0.00013026,7]
[425827247,1781946638000,-168.60425142,0.0001307,2]
[425827240,1781946638000,-319.346332,0.00012792,2]
[425827239,1781946638000,-500.0,0.00012766,2]
[425827231,1781946638000,-500.0,0.00012218,2]
[425827236,1781946638000,-402.00812225,0.00012683,2]
[425827242,1781946638000,-2067.6110742,0.00013,2]
[425827234,1781946638000,-401.04467293,0.00012417,2]
[425827233,1781946638000,-319.346332,0.00012276,2]
[425827235,1781946638000,-500.0,0.00012492,2]
[425827232,1781946638000,-1004.0,0.00012258,2]
[425827229,1781946638000,-1233.9147055,0.00011089,2]
[425827230,1781946638000,-334.44898648,0.00012214,2]
[425827237,1781946638000,-413.3556524,0.00012746,2]
[425827244,1781946638000,-166.0,0.00013,2]
[425827264,1781946638000,-504.25793933,0.0001315,2]
[425827249,1781946638000,-500.0,0.0001315,2]
[425827250,1781946638000,-500.0,0.0001315,2]
[425827269,1781946638000,-500.0,0.0001315,2]
[425827270,1781946638000,-204.04038867,0.0001315,2]
[425827267,1781946638000,-459.493326,0.0001315,2]
[425827268,1781946638000,-109.5070907,0.0001315,2]
[425827265,1781946638000,-500.0,0.0001315,2]
[425827266,1781946638000,-49.68118343,0.0001315,2]
[425827261,1781946638000,-500.0,0.0001315,2]
[425827258,1781946638000,-500.0,0.0001315,2]
[425827263,1781946638000,-500.0,0.0001315,2]
[425827262,1781946638000,-638.25636276,0.0001315,2]
[425827251,1781946638000,-500.0,0.0001315,2]
[425827260,1781946638000,-500.0,0.0001315,2]
[425827254,1781946638000,-500.0,0.0001315,2]
[425827255,1781946638000,-500.0,0.0001315,2]
[425827252,1781946638000,-500.0,0.0001315,2]
[425827257,1781946638000,-527.24599556,0.0001315,2]
[425827253,1781946638000,-500.0,0.0001315,2]
[425827259,1781946638000,-500.0,0.0001315,2]
[425827256,1781946638000,-500.0,0.0001315,2]
[425827343,1781946646000,-261.4766023,0.0001315,2]
[425827341,1781946646000,-500.0,0.0001315,2]
[425827339,1781946646000,-524.00954307,0.0001315,2]
[425827338,1781946646000,-500.0,0.0001315,2]
[425827336,1781946646000,-295.95961133,0.0001315,2]
[425827609,1781947832000,-1367.73079887,0.00011868,2]
[425827608,1781947832000,-769.34857436,0.00011868,2]
[425827607,1781947832000,-427.41587465,0.00011868,2]
[425827605,1781947832000,-244.0,0.00011867,2]
[425827606,1781947832000,-970.84,0.00011867,2]
[425827610,1781947832000,-2137.07937323,0.00011868,2]
[425827611,1781947832000,-2093.95937848,0.00011868,2]
[425827787,1781947838000,-933.43019471,0.00011868,2]
[425827791,1781947838000,-241.20487335,0.00012774,2]
[425827789,1781947838000,-209.84711371,0.00012493,2]
[425827793,1781947838000,-2642.26701097,0.00012808,2]
[425827792,1781947838000,-3147.30660027,0.00012775,2]
[425827788,1781947838000,-50.00472427,0.00011868,2]
[425827790,1781947838000,-377.34707987,0.00012493,2]
[425827831,1781947846000,-3691.88116326,0.00012808,2]
[425827841,1781947846000,-1456.31579578,0.00012873,2]
[425827833,1781947846000,-310.0167393,0.00012808,2]
[425827832,1781947846000,-127.51338777,0.00012808,2]
[425827834,1781947846000,-241.20487335,0.00012812,2]
[425827836,1781947846000,-234.11429054,0.00012873,2]
[425827837,1781947846000,-500.0,0.00012873,2]
[425827840,1781947846000,-500.0,0.00012873,2]
[425827838,1781947846000,-500.0,0.00012873,2]
[425827839,1781947846000,-1456.31579578,0.00012873,2]
[425827842,1781947846000,-455.90863175,0.00012873,2]
[425827844,1781947846000,-35.82617292,0.00012873,2]
[425827843,1781947846000,-500.0,0.00012873,2]
[425827835,1781947846000,-241.20487335,0.0001285,2]
[425827855,1781949032000,-387.11159994,0.00012493,2]
[425827856,1781949032000,-175.8232373,0.00012493,2]
[425827859,1781949032000,-649.72924612,0.00012493,2]
[425827854,1781949032000,-419.50116468,0.00012375,2]
[425827860,1781949032000,-229.38694037,0.00012493,2]
[425827857,1781949032000,-316.48182714,0.00012493,2]
[425827862,1781949032000,-1525.4729791,0.0001259,2]
[425827858,1781949032000,-562.63435935,0.00012493,2]
[425827863,1781949032000,-4185.69293306,0.0001259,2]
[425827865,1781949032000,-232.5125544,0.0001259,2]
[425827864,1781949032000,-1583.52352924,0.0001259,2]
[425827866,1781949032000,-160.8032489,0.00012773,2]
[425827867,1781949032000,-500.0,0.00012774,2]
[425827868,1781949032000,-163.88000338,0.00012774,2]
[425827869,1781949032000,-164.62859081,0.00012774,2]
[425827870,1781949032000,-723.79334226,0.00012774,2]
[425827861,1781949032000,-254.0,0.00012589,2]
[425827882,1781949038000,-1417.94699881,0.00012773,2]
[425827881,1781949038000,-500.0,0.00012773,2]
[425827883,1781949038000,-1.5822522,0.00012773,2]
[425827886,1781949040000,-500.0,0.00012773,2]
[425827885,1781949040000,-1417.94699881,0.00012773,2]
[425827887,1781949040000,-1417.94699881,0.00012773,2]
[425827888,1781949040000,-500.0,0.00012773,2]
[425827884,1781949040000,-498.4177478,0.00012773,2]
[425827889,1781949040000,-1417.94699881,0.00012773,2]
[425827892,1781949040000,-1417.94699881,0.00012773,2]
[425827890,1781949040000,-1417.94699881,0.00012773,2]
[425827891,1781949040000,-575.9571908,0.00012773,2]
[425827893,1781949040000,-550.90320488,0.00012773,2]
[425827896,1781949041000,-1417.94699881,0.00012773,2]
[425827897,1781949041000,-1031.26109225,0.00012773,2]
[425827894,1781949041000,-867.04379393,0.00012773,2]
[425827965,1781949046000,-1417.94699881,0.00012773,2]
[425827966,1781949046000,-126.46623741,0.00012773,2]
[425827964,1781949046000,-386.68590656,0.00012773,2]
[425828004,1781949144000,159.59395448,0.00023265,120]
[425828005,1781949145000,159.59395448,0.00023265,120]
[425828011,1781949436000,510.51696478,0.0001,2]
[425828012,1781949460000,215.08095502,0.0001,2]
[425828013,1781949464000,679.26067974,0.0001,2]
[425828160,1781950238000,-297.28509909,0.00011868,2]
[425828166,1781950238000,-828.61616404,0.00011998,2]
[425828169,1781950238000,-500.0,0.00011998,2]
[425828164,1781950238000,-286.21746565,0.00011998,2]
[425828170,1781950238000,-1383.58234922,0.00011998,2]
[425828162,1781950238000,-202.18007617,0.00011998,2]
[425828161,1781950238000,-339.41464456,0.00011868,2]
[425828159,1781950238000,-226.2504255,0.00011783,2]
[425828175,1781950238000,-500.0,0.00011998,2]
[425828165,1781950238000,-500.0,0.00011998,2]
[425828163,1781950238000,-1383.58234922,0.00011998,2]
[425828168,1781950238000,-1383.58234922,0.00011998,2]
[425828171,1781950238000,-1383.58234922,0.00011998,2]
[425828173,1781950238000,-1383.58234922,0.00011998,2]
[425828174,1781950238000,-1383.58234922,0.00011998,2]
[425828172,1781950238000,-500.0,0.00011998,2]
[425828167,1781950238000,-554.96618518,0.00011998,2]
[425828176,1781950239000,-511.77739176,0.00011998,2]
[425828209,1781950246000,-1383.58234922,0.00011998,2]
[425828207,1781950246000,-1383.58234922,0.00011998,2]
[425828214,1781950246000,-1383.58234922,0.00011998,2]
[425828213,1781950246000,-1383.58234922,0.00011998,2]
[425828211,1781950246000,-1383.58234922,0.00011998,2]
[425828206,1781950246000,-83.89858334,0.00011998,2]
[425828210,1781950246000,-1383.58234922,0.00011998,2]
[425828208,1781950246000,-1383.58234922,0.00011998,2]
[425828202,1781950246000,-1383.58234922,0.00011998,2]
[425828205,1781950246000,-1299.68376588,0.00011998,2]
[425828203,1781950246000,-588.30147526,0.00011998,2]
[425828201,1781950246000,-1383.58234922,0.00011998,2]
[425828200,1781950246000,-500.0,0.00011998,2]
[425828198,1781950246000,-871.80495746,0.00011998,2]
[425828199,1781950246000,-1383.58234922,0.00011998,2]
[425828212,1781950246000,-1383.58234922,0.00011998,2]
[425828204,1781950246000,-1383.58234922,0.00011998,2]
[425828219,1781950246000,-1383.58234922,0.00011998,2]
[425828231,1781950246000,-1383.58234922,0.00011998,2]
[425828215,1781950246000,-1383.58234922,0.00011998,2]
[425828217,1781950246000,-1383.58234922,0.00011998,2]
[425828233,1781950246000,-1383.58234922,0.00011998,2]
[425828230,1781950246000,-1383.58234922,0.00011998,2]
[425828234,1781950246000,-1383.58234922,0.00011998,2]
[425828229,1781950246000,-1383.58234922,0.00011998,2]
[425828232,1781950246000,-1383.58234922,0.00011998,2]
[425828226,1781950246000,-1383.58234922,0.00011998,2]
[425828225,1781950246000,-1383.58234922,0.00011998,2]
[425828224,1781950246000,-1383.58234922,0.00011998,2]
[425828227,1781950246000,-1383.58234922,0.00011998,2]
[425828223,1781950246000,-1383.58234922,0.00011998,2]
[425828220,1781950246000,-1383.58234922,0.00011998,2]
[425828218,1781950246000,-1383.58234922,0.00011998,2]
[425828221,1781950246000,-1383.58234922,0.00011998,2]
[425828216,1781950246000,-1383.58234922,0.00011998,2]
[425828222,1781950246000,-1383.58234922,0.00011998,2]
[425828228,1781950246000,-1383.58234922,0.00011998,2]
[425828241,1781950247000,-1383.58234922,0.00011998,2]
[425828243,1781950247000,-1383.58234922,0.00011998,2]
[425828244,1781950247000,-1383.58234922,0.00011998,2]
[425828240,1781950247000,-1383.58234922,0.00011998,2]
[425828239,1781950247000,-1383.58234922,0.00011998,2]
[425828237,1781950247000,-1383.58234922,0.00011998,2]
[425828238,1781950247000,-1383.58234922,0.00011998,2]
[425828236,1781950247000,-1383.58234922,0.00011998,2]
[425828235,1781950247000,-1383.58234922,0.00011998,2]
[425828245,1781950247000,-1383.58234922,0.00011998,2]
[425828247,1781950247000,-1383.58234922,0.00011998,2]
[425828242,1781950247000,-1383.58234922,0.00011998,2]
[425828246,1781950247000,-1383.58234922,0.00011998,2]
[425828259,1781950247000,-482.82708696,0.00012475,2]
[425828255,1781950247000,-1383.58234922,0.00011998,2]
[425828254,1781950247000,-1383.58234922,0.00011998,2]
[425828249,1781950247000,-1383.58234922,0.00011998,2]
[425828258,1781950247000,-509.0,0.00012134,2]
[425828253,1781950247000,-1383.58234922,0.00011998,2]
[425828257,1781950247000,-38145.48065098,0.00012,2]
[425828250,1781950247000,-1383.58234922,0.00011998,2]
[425828251,1781950247000,-1383.58234922,0.00011998,2]
[425828260,1781950247000,-4670.7006107,0.00012574,2]
[425828256,1781950247000,-1383.58234922,0.00011998,2]
[425828248,1781950247000,-1383.58234922,0.00011998,2]
[425828252,1781950247000,-1383.58234922,0.00011998,2]
[425828261,1781950593000,2000.0,0.0002465,120]
[425828276,1781951432000,-313.0,0.0001267,2]
[425828273,1781951432000,-2244.5386069,0.00012028,2]
[425828275,1781951432000,-3646.95878946,0.00012571,2]
[425828272,1781951432000,-179.41222859,0.00010618,7]
[425828274,1781951432000,-1144.1047344,0.00012028,2]
[425828278,1781951432000,-500.0,0.00012671,2]
[425828295,1781951432000,-253.74996774,0.00012671,2]
[425828282,1781951432000,-133.43213914,0.00012671,2]
[425828293,1781951432000,-69.31876584,0.00012671,2]
[425828299,1781951432000,-4440.08630755,0.00012672,2]
[425828297,1781951432000,-246.25003226,0.00012671,2]
[425828304,1781951432000,-509.65313447,0.00012672,2]
[425828302,1781951432000,-670.94,0.00012672,2]
[425828280,1781951432000,-733.14724984,0.00012671,2]
[425828325,1781951438000,-437.93023095,0.00012773,2]
[425828313,1781951438000,-6612.59504986,0.00012672,2]
[425828312,1781951438000,-75007.60895276,0.00012672,2]
[425828316,1781951438000,-733.14724981,0.00012726,2]
[425828314,1781951438000,-733.14724981,0.00012689,2]
[425828318,1781951438000,-4565.1,0.00012735,2]
[425828317,1781951438000,-174.3844158,0.00012735,2]
[425828315,1781951438000,-733.14724981,0.00012708,2]
[425828321,1781951438000,-205.6126132,0.00012773,2]
[425828323,1781951438000,-367.16538071,0.00012773,2]
[425828319,1781951438000,-733.14724981,0.00012744,2]
[425828324,1781951438000,-156.62480121,0.00012773,2]
[425828320,1781951438000,-151.676326,0.00012772,2]
[425828326,1781951438000,-337.791953,0.00012773,2]
[425828327,1781951438000,-1004.0,0.00012844,2]
[425828330,1781951438000,-515.53188634,0.00012876,2]
[425828331,1781951438000,-500.0,0.00012876,2]
[425828328,1781951438000,-250.52802638,0.00012844,2]
[425828329,1781951438000,-500.0,0.00012876,2]
[425828322,1781951438000,-234.98584366,0.00012773,2]
[425828392,1781951439000,-1117.58813867,0.00013068,2]
[425828375,1781951439000,-500.0,0.00012876,2]
[425828371,1781951439000,-500.0,0.00012876,2]
[425828373,1781951439000,-500.0,0.00012876,2]
[425828368,1781951439000,-500.0,0.00012876,2]
[425828372,1781951439000,-500.0,0.00012876,2]
[425828363,1781951439000,-460.3430396,0.00012876,2]
[425828369,1781951439000,-500.0,0.00012876,2]
[425828367,1781951439000,-500.0,0.00012876,2]
[425828365,1781951439000,-500.0,0.00012876,2]
[425828374,1781951439000,-500.0,0.00012876,2]
[425828366,1781951439000,-500.0,0.00012876,2]
[425828370,1781951439000,-500.0,0.00012876,2]
[425828376,1781951439000,-500.0,0.00012876,2]
[425828382,1781951439000,-1004.0,0.00012962,2]
[425828378,1781951439000,-500.0,0.00012876,2]
[425828379,1781951439000,-451.6758181,0.00012876,2]
[425828380,1781951439000,-184.9736379,0.00012945,2]
[425828364,1781951439000,-500.0,0.00012876,2]
[425828383,1781951439000,-1004.0,0.00012962,2]
[425828381,1781951439000,-543.04333305,0.00012962,2]
[425828384,1781951439000,-1004.0,0.00012962,2]
[425828387,1781951439000,-32988.71436772,0.00013,2]
[425828386,1781951439000,-243.877802,0.00012974,2]
[425828385,1781951439000,-1004.0,0.00012962,2]
[425828389,1781951439000,-3585.36740699,0.00013,2]
[425828390,1781951439000,-52090.85743504,0.00013,2]
[425828388,1781951439000,-1609.06079025,0.00013,2]
[425828377,1781951439000,-416.0,0.00012876,2]
[425828362,1781951439000,-500.0,0.00012876,2]
[425828360,1781951439000,-500.0,0.00012876,2]
[425828358,1781951439000,-617.78766678,0.00012876,2]
[425828335,1781951439000,-602.0,0.00012876,2]
[425828334,1781951439000,-339.70130596,0.00012876,2]
[425828337,1781951439000,-602.0,0.00012876,2]
[425828333,1781951439000,-500.0,0.00012876,2]
[425828332,1781951439000,-500.0,0.00012876,2]
[425828336,1781951439000,-602.0,0.00012876,2]
[425828338,1781951439000,-602.0,0.00012876,2]
[425828340,1781951439000,-602.0,0.00012876,2]
[425828342,1781951439000,-602.0,0.00012876,2]
[425828339,1781951439000,-602.0,0.00012876,2]
[425828341,1781951439000,-602.0,0.00012876,2]
[425828343,1781951439000,-602.0,0.00012876,2]
[425828344,1781951439000,-602.0,0.00012876,2]
[425828345,1781951439000,-602.0,0.00012876,2]
[425828347,1781951439000,-602.0,0.00012876,2]
[425828348,1781951439000,-602.0,0.00012876,2]
[425828346,1781951439000,-602.0,0.00012876,2]
[425828350,1781951439000,-602.0,0.00012876,2]
[425828351,1781951439000,-602.0,0.00012876,2]
[425828349,1781951439000,-602.0,0.00012876,2]
[425828354,1781951439000,-602.0,0.00012876,2]
[425828352,1781951439000,-602.0,0.00012876,2]
[425828353,1781951439000,-602.0,0.00012876,2]
[425828356,1781951439000,-602.0,0.00012876,2]
[425828355,1781951439000,-602.0,0.00012876,2]
[425828357,1781951439000,-602.0,0.00012876,2]
[425828359,1781951439000,-171.00275813,0.00012876,2]
[425828361,1781951439000,-500.0,0.00012876,2]
[425828391,1781951439000,-186.0,0.0001305,2]
[425828402,1781951439000,-500.0,0.00013698,2]
[425828397,1781951439000,-150.491,0.00013692,2]
[425828429,1781951439000,-500.0,0.00013699,2]
[425828427,1781951439000,-500.0,0.00013699,2]
[425828431,1781951439000,-500.0,0.00013699,2]
[425828430,1781951439000,-500.0,0.00013699,2]
[425828432,1781951439000,-500.0,0.00013699,2]
[425828436,1781951439000,-243.877802,0.00014067,2]
[425828437,1781951439000,-500.0,0.00014269,2]
[425828433,1781951439000,-500.0,0.00013699,2]
[425828434,1781951439000,-581.16959202,0.00013699,2]
[425828435,1781951439000,-3646.95878945,0.00013892,2]
[425828439,1781951439000,-154.15,0.00014615,2]
[425828438,1781951439000,-243.877802,0.00014613,2]
[425828440,1781951439000,-500.0,0.00014631,2]
[425828428,1781951439000,-500.0,0.00013699,2]
[425828442,1781951439000,-1144.1047344,0.00014681,2]
[425828444,1781951439000,-1001.00882289,0.00015,2]
[425828446,1781951439000,-189.600699,0.00015068,2]
[425828443,1781951439000,-1156.51291549,0.00014802,2]
[425828445,1781951439000,-500.0,0.00015021,2]
[425828448,1781951439000,-174.3844158,0.00015152,2]
[425828447,1781951439000,-200.88539025,0.000151,2]
[425828450,1781951439000,-160.607,0.00015185,2]
[425828449,1781951439000,-243.877802,0.00015159,2]
[425828451,1781951439000,-3646.95878945,0.00015213,2]
[425828452,1781951439000,-160.0,0.00015579,2]
[425828393,1781951439000,-600.0,0.00013139,2]
[425828455,1781951439000,-160.0,0.00015579,2]
[425828454,1781951439000,-160.0,0.00015579,2]
[425828441,1781951439000,-2244.5386069,0.00014681,2]
[425828425,1781951439000,-500.0,0.00013699,2]
[425828453,1781951439000,-417.15472785,0.00015579,2]
[425828421,1781951439000,-152.60214828,0.00013699,2]
[425828426,1781951439000,-500.0,0.00013699,2]
[425828395,1781951439000,-797.0,0.000133,2]
[425828394,1781951439000,-619.44982471,0.00013139,2]
[425828396,1781951439000,-243.877802,0.00013521,2]
[425828400,1781951439000,-500.0,0.00013698,2]
[425828399,1781951439000,-301.3307509,0.00013698,2]
[425828401,1781951439000,-500.0,0.00013698,2]
[425828403,1781951439000,-500.0,0.00013698,2]
[425828406,1781951439000,-521.46674206,0.00013698,2]
[425828405,1781951439000,-239.88149511,0.00013698,2]
[425828407,1781951439000,-500.0,0.00013698,2]
[425828404,1781951439000,-500.0,0.00013698,2]
[425828408,1781951439000,-500.0,0.00013698,2]
[425828409,1781951439000,-500.0,0.00013698,2]
[425828398,1781951439000,-500.0,0.00013698,2]
[425828411,1781951439000,-500.0,0.00013698,2]
[425828410,1781951439000,-500.0,0.00013698,2]
[425828424,1781951439000,-500.0,0.00013699,2]
[425828422,1781951439000,-298.55305354,0.00013699,2]
[425828420,1781951439000,-151.0,0.00013699,2]
[425828417,1781951439000,-151.0,0.00013699,2]
[425828418,1781951439000,-151.0,0.00013699,2]
[425828423,1781951439000,-739.88867225,0.00013699,2]
[425828416,1781951439000,-151.0,0.00013699,2]
[425828414,1781951439000,-151.0,0.00013699,2]
[425828415,1781951439000,-151.0,0.00013699,2]
[425828412,1781951439000,-269.188291,0.00013699,2]
[425828413,1781951439000,-1000.0,0.00013699,2]
[425828419,1781951439000,-151.0,0.00013699,2]
[425828492,1781951440000,-152.381931,0.00016438,2]
[425828489,1781951440000,-152.381931,0.00016438,2]
[425828495,1781951440000,-152.381931,0.00016438,2]
[425828491,1781951440000,-152.381931,0.00016438,2]
[425828494,1781951440000,-152.381931,0.00016438,2]
[425828493,1781951440000,-152.381931,0.00016438,2]
[425828490,1781951440000,-152.381931,0.00016438,2]
[425828485,1781951440000,-152.381931,0.00016438,2]
[425828499,1781951440000,-152.381931,0.00016438,2]
[425828486,1781951440000,-152.381931,0.00016438,2]
[425828496,1781951440000,-152.381931,0.00016438,2]
[425828488,1781951440000,-152.381931,0.00016438,2]
[425828508,1781951440000,-152.381931,0.00016438,2]
[425828500,1781951440000,-152.381931,0.00016438,2]
[425828503,1781951440000,-152.381931,0.00016438,2]
[425828501,1781951440000,-152.381931,0.00016438,2]
[425828506,1781951440000,-152.381931,0.00016438,2]
[425828505,1781951440000,-152.381931,0.00016438,2]
[425828507,1781951440000,-152.381931,0.00016438,2]
[425828510,1781951440000,-152.381931,0.00016438,2]
[425828509,1781951440000,-152.381931,0.00016438,2]
[425828511,1781951440000,-152.381931,0.00016438,2]
[425828514,1781951440000,-152.381931,0.00016438,2]
[425828513,1781951440000,-152.381931,0.00016438,2]
[425828487,1781951440000,-152.381931,0.00016438,2]
[425828516,1781951440000,-152.381931,0.00016438,2]
[425828498,1781951440000,-152.381931,0.00016438,2]
[425828482,1781951440000,-152.381931,0.00016438,2]
[425828470,1781951440000,-186.0,0.0001605,2]
[425828483,1781951440000,-152.381931,0.00016438,2]
[425828512,1781951440000,-152.381931,0.00016438,2]
[425828456,1781951440000,-160.0,0.00015579,2]
[425828458,1781951440000,-322.7603863,0.000157,2]
[425828457,1781951440000,-252.85,0.00015655,2]
[425828460,1781951440000,-348.00071434,0.00015772,2]
[425828459,1781951440000,-243.877802,0.00015705,2]
[425828461,1781951440000,-322.7603863,0.000158,2]
[425828462,1781951440000,-860.21860172,0.000158,2]
[425828463,1781951440000,-322.7603863,0.00016,2]
[425828464,1781951440000,-3000.0,0.00016,2]
[425828465,1781951440000,-3403.82114528,0.00016,2]
[425828466,1781951440000,-3000.0,0.0001601,2]
[425828484,1781951440000,-152.381931,0.00016438,2]
[425828467,1781951440000,-3000.0,0.0001602,2]
[425828472,1781951440000,-5874.651759,0.0001606,2]
[425828468,1781951440000,-3000.0,0.0001603,2]
[425828471,1781951440000,-3000.0,0.0001605,2]
[425828474,1781951440000,-600.0,0.00016216,2]
[425828473,1781951440000,-322.7603863,0.000161,2]
[425828475,1781951440000,-322.7603863,0.000163,2]
[425828476,1781951440000,-540.41361402,0.00016438,2]
[425828478,1781951440000,-152.381931,0.00016438,2]
[425828477,1781951440000,-205.069376,0.00016438,2]
[425828479,1781951440000,-152.381931,0.00016438,2]
[425828480,1781951440000,-152.381931,0.00016438,2]
[425828481,1781951440000,-152.381931,0.00016438,2]
[425828469,1781951440000,-3000.0,0.0001604,2]
[425828515,1781951440000,-152.381931,0.00016438,2]
[425828531,1781951440000,-152.381931,0.00016438,2]
[425828517,1781951440000,-152.381931,0.00016438,2]
[425828550,1781951440000,-500.0,0.00016438,2]
[425828553,1781951440000,-500.0,0.00016438,2]